[Event "26th Abu Dhabi Master 2019"]
[Site "Abu Dhabi"]
[Date "2019.08.08"]
[Round "7.57"]
[White "Panesar Vedant"]
[Black "Bhambure, Shantanu"]
[Result "0-1"]
[ECO "B98"]
[WhiteElo "2092"]
[BlackElo "2275"]
[Annotator "NA"]
[PlyCount "70"]
[EventDate "2019.08.02"]
[EventType "swiss"]
[EventCountry "UAE"]
[SourceTitle "playchess.com"]
[Source "ChessBase"]
[SourceQuality "1"]
[TimeControl "5400+30"]

1. e4 {[%emt 0:00:00]} c5 {[%emt 0:00:00]} 2. Nf3 {[%emt 0:00:00]} d6 {[%emt 0:00:00]} 3. d4 {[%emt 0:00:00]} cxd4 {[%emt 0:00:00]} 4. Nxd4 {[%emt 0:00:00]} Nf6 {[%emt 0:00:00]} 5. Nc3 {[%emt 0:00:00]} a6 {[%emt 0:00:00]} 6. Bg5 {[%emt 0:00:32]} e6 {[%emt 0:00:25]} 7. f4 {[%emt 0:00:04]} h6 {[%emt 0:00:04]} 8. Bh4 {[%emt 0:00:01]} Be7 {[%emt 0:00:22]} 9. Qf3 {[%emt 0:02:32]} Qc7 {[%emt 0:00:06]} 10. O-O-O {[%emt 0:06:15]} Nbd7 {[%emt 0:00:07]} 11. Bd3 {[%emt 0:04:12]} g5 {[%emt 0:00:23]} 12. fxg5 {[%emt 0:08:09]} Ne5 {[%emt 0:00:07]} 13. Qe2 {[%emt 0:01:32]} Nfg4 {[%emt 0:00:27]} 14. Kb1 {[%emt 0:05:46]} hxg5 {[%emt 0:03:02]} 15. Bg3 {[%emt 0:01:22]} Bd7 {[%emt 0:07:27]} 16. h4 {[%emt 0:09:59]} gxh4 {[%emt 0:05:19]} 17. Nf5 {[%emt 0:05:23]} exf5 {[%emt 0:09:00]} 18. Nd5 {[%emt 0:00:05]} Qd8 {[%emt 0:05:46]} 19. exf5 {[%emt 0:00:17]} Bf6 {[%emt 0:08:39]} 20. Be1 {[%emt 0:04:44]} Bc6 {[%emt 0:05:38]} 21. Bc4 {[%emt 0:00:02]} Bxd5 {[%emt 0:13:06]} 22. Bxd5 {[%emt 0:02:54]} Qe7 {[%emt 0:01:43]} 23. Rh3 {[%emt 0:00:29]} Rd8 {[%emt 0:05:07]} 24. Rd4 {[%emt 0:04:32]} Rg8 {[%emt 0:03:10]} 25. Ba5 {[%emt 0:01:28]} Rc8 {[%emt 0:03:15]} 26. Bb4 {[%emt 0:03:07]} Nc6 {[%emt 0:08:41]} 27. Re4 {[%emt 0:00:25]} Nge5 {[%emt 0:00:16]} 28. Ba3 {[%emt 0:00:48]} Rg3 {[%emt 0:01:52]} 29. Rxg3 {[%emt 0:00:40]} hxg3 {[%emt 0:00:05]} 30. Qd2 {[%emt 0:01:31]} Qd7 {[%emt 0:07:22]} 31. c4 {[%emt 0:01:49]} Ne7 {[%emt 0:02:10]} 32. Be6 {[%emt 0:10:03]} fxe6 {[%emt 0:02:07]} 33. c5 {[%emt 0:00:56]} dxc5 {[%emt 0:01:25]} 34. Qe1 {[%emt 0:00:01]} Qd3+ {[%emt 0:00:34]} 35. Ka1 {[%emt 0:00:02]} Rd8 {[%emt 0:00:50]} 0-1

[Event "26th Abu Dhabi Master 2019"]
[Site "Abu Dhabi"]
[Date "2019.08.08"]
[Round "7.58"]
[White "Vatsal Singhania"]
[Black "Aaryan Varshney"]
[Result "1/2-1/2"]
[ECO "B92"]
[WhiteElo "2213"]
[BlackElo "2284"]
[Annotator "NA"]
[PlyCount "99"]
[EventDate "2019.08.02"]
[EventType "swiss"]
[EventCountry "UAE"]
[SourceTitle "playchess.com"]
[Source "ChessBase"]
[SourceQuality "1"]
[TimeControl "5400+30"]

1. e4 {[%emt 0:00:00]} c5 {[%emt 0:00:00]} 2. Nf3 {[%emt 0:00:00]} d6 {[%emt 0:00:00]} 3. d4 {[%emt 0:00:00]} cxd4 {[%emt 0:00:00]} 4. Nxd4 {[%emt 0:00:04]} Nf6 {[%emt 0:00:00]} 5. Nc3 {[%emt 0:00:09]} a6 {[%emt 0:00:01]} 6. Be2 {[%emt 0:00:09]} e5 {[%emt 0:00:45]} 7. Nb3 {[%emt 0:00:06]} Be7 {[%emt 0:00:15]} 8. O-O {[%emt 0:00:06]} O-O {[%emt 0:00:13]} 9. Kh1 {[%emt 0:00:05]} Be6 {[%emt 0:01:51]} 10. f4 {[%emt 0:00:09]} exf4 {[%emt 0:00:25]} 11. Bxf4 {[%emt 0:00:05]} Nc6 {[%emt 0:01:09]} 12. Qe1 {[%emt 0:00:06]} Ne5 {[%emt 0:03:18]} 13. Rd1 {[%emt 0:00:07]} Qc7 {[%emt 0:00:31]} 14. Nd4 {[%emt 0:00:36]} Rac8 {[%emt 0:02:12]} 15. Qg3 {[%emt 0:00:35]} Rfe8 {[%emt 0:09:54]} 16. a4 {[%emt 0:13:06]} Kh8 {[%emt 0:01:41]} 17. Bc1 {[%emt 0:15:30]} Qd7 {[%emt 0:04:24]} 18. b3 {[%emt 0:12:12]} Nc6 {[%emt 0:05:02]} 19. Bb2 {[%emt 0:02:47]} Nxd4 {[%emt 0:01:10]} 20. Rxd4 {[%emt 0:02:07]} Qc7 {[%emt 0:01:05]} 21. Rd2 {[%emt 0:01:05]} Qa5 {[%emt 0:01:08]} 22. Nb1 {[%emt 0:28:46]} Rg8 {[%emt 0:07:11]} 23. Bf3 {[%emt 0:00:40]} Nd7 {[%emt 0:16:05]} 24. Rfd1 {[%emt 0:12:54]} Ne5 {[%emt 0:02:01]} 25. Ba3 {[%emt 0:01:23]} h6 {[%emt 0:08:10]} 26. c4 {[%emt 0:04:05]} b5 {[%emt 0:01:59]} 27. axb5 {[%emt 0:00:58]} axb5 {[%emt 0:00:23]} 28. Bxd6 {[%emt 0:00:44]} Bxd6 {[%emt 0:00:35]} 29. Rxd6 {[%emt 0:00:05]} Nxf3 {[%emt 0:05:52]} 30. Qxf3 {[%emt 0:00:16]} bxc4 {[%emt 0:01:04]} 31. bxc4 {[%emt 0:00:17]} Rxc4 {[%emt 0:00:45]} 32. Nd2 {[%emt 0:00:44]} Rc3 {[%emt 0:00:58]} 33. Qf4 {[%emt 0:01:06]} Rd8 {[%emt 0:04:18]} 34. Nf3 {[%emt 0:01:17]} Rxd6 {[%emt 0:00:32]} 35. Qxd6 {[%emt 0:00:04]} Qa8 {[%emt 0:02:18]} 36. Qd8+ {[%emt 0:03:14]} Qxd8 {[%emt 0:00:02]} 37. Rxd8+ {[%emt 0:00:04]} Kh7 {[%emt 0:00:01]} 38. Kg1 {[%emt 0:00:08]} Bc8 {[%emt 0:02:09]} 39. Kf2 {[%emt 0:00:32]} Bb7 {[%emt 0:00:18]} 40. Rd7 {[%emt 0:01:05]} Bxe4 {[%emt 0:00:13]} 41. Rxf7 {[%emt 0:00:06]} Rc2+ {[%emt 0:00:23]} 42. Kg3 {[%emt 0:00:19]} Kg8 {[%emt 0:00:30]} 43. Rf4 {[%emt 0:00:17]} Bb7 {[%emt 0:00:22]} 44. Rd4 {[%emt 0:00:49]} Rc3 {[%emt 0:00:18]} 45. Rd8+ {[%emt 0:00:31]} Kh7 {[%emt 0:00:14]} 46. Rd2 {[%emt 0:00:06]} Bxf3 {[%emt 0:00:19]} 47. gxf3 {[%emt 0:00:05]} h5 {[%emt 0:00:21]} 48. h4 {[%emt 0:00:04]} Kh6 {[%emt 0:00:11]} 49. Rd6+ {[%emt 0:00:16]} g6 {[%emt 0:00:05]} 50. Ra6 {[%emt 0:00:08]} 1/2-1/2

[Event "26th Abu Dhabi Master 2019"]
[Site "Abu Dhabi"]
[Date "2019.08.08"]
[Round "7.59"]
[White "Kushagra Mohan"]
[Black "Panda Sambit"]
[Result "1-0"]
[ECO "B18"]
[WhiteElo "2250"]
[BlackElo "2126"]
[Annotator "NA"]
[PlyCount "92"]
[EventDate "2019.08.02"]
[EventType "swiss"]
[EventCountry "UAE"]
[SourceTitle "playchess.com"]
[Source "ChessBase"]
[SourceQuality "1"]
[TimeControl "5400+30"]

1. e4 c6 2. d4 d5 3. Nd2 dxe4 4. Nxe4 Bf5 5. Ng3 Bg6 6. h4 h6 7. Nf3 e6 8. Ne5 Bh7 9. Bd3 Bxd3 10. Qxd3 Nd7 11. f4 Bb4+ 12. c3 Bd6 13. Bd2 Ngf6 14. O-O-O O-O 15. Qf3 Qc7 16. Ne2 h5 17. Rhg1 c5 18. g4 cxd4 19. Nxd7 Qxd7 20. gxh5 Qc6 21. Qg3 Nxh5 22. Qg4 Qd5 23. Nxd4 Bc5 24. Be3 g6 25. Qe2 Be7 26. f5 Qe4 27. fxg6 f5 28. Qxh5 Qxe3+ 29. Kb1 Qe4+ 30. Ka1 Qxh4 31. Qxh4 Bxh4 32. Nxe6 Rf6 33. Nf4 Re8 34. a3 Re4 35. Nh5 Rfe6 36. Ka2 Rg4 37. Rgf1 Rexg6 38. Rxf5 Rb6 39. Nf4 Rg5 40. Rd8+ Kh7 41. Rff8 Bg3 42. Rh8+ Kg7 43. Rdg8+ Kf6 44. Nh5+ Rxh5 45. Rxh5 Bd6 46. Rh7 Ke6 1-0

[Event "26th Abu Dhabi Master 2019"]
[Site "Abu Dhabi"]
[Date "2019.08.08"]
[Round "7.60"]
[White "Ayyad, Husain"]
[Black "Dixit, Nikhil"]
[Result "0-1"]
[ECO "B08"]
[WhiteElo "2231"]
[BlackElo "2318"]
[Annotator "NA"]
[PlyCount "95"]
[EventDate "2019.08.02"]
[EventType "swiss"]
[EventCountry "UAE"]
[SourceTitle "playchess.com"]
[Source "ChessBase"]
[SourceQuality "1"]
[TimeControl "5400+30"]

1. e4 {[%emt 0:03:24]} g6 {[%emt 0:00:00]} 2. d4 {[%emt 0:00:12]} Bg7 {[%emt 0:00:00]} 3. Nf3 {[%emt 0:00:38]} d6 {[%emt 0:00:05]} 4. Be2 {[%emt 0:02:04]} Nf6 {[%emt 0:00:30]} 5. Nc3 {[%emt 0:00:15]} O-O {[%emt 0:00:08]} 6. O-O {[%emt 0:00:05]} c6 {[%emt 0:00:09]} 7. a4 {[%emt 0:00:41]} Qc7 {[%emt 0:01:36]} 8. a5 {[%emt 0:07:30]} Nbd7 {[%emt 0:00:47]} 9. h3 {[%emt 0:05:22]} e5 {[%emt 0:01:11]} 10. d5 {[%emt 0:00:10]} cxd5 {[%emt 0:02:26]} 11. Nb5 {[%emt 0:04:32]} Qb8 {[%emt 0:08:23]} 12. exd5 {[%emt 0:03:29]} a6 {[%emt 0:00:14]} 13. Na3 {[%emt 0:04:13]} b5 {[%emt 0:02:49]} 14. axb6 {[%emt 0:03:19]} Nxb6 {[%emt 0:00:30]} 15. c4 {[%emt 0:00:09]} Bd7 {[%emt 0:05:58]} 16. b3 {[%emt 0:19:15]} Ne4 {[%emt 0:06:13]} 17. Nb1 {[%emt 0:00:05]} a5 {[%emt 0:04:01]} 18. Nfd2 {[%emt 0:00:21]} Nc5 {[%emt 0:01:49]} 19. Ra2 {[%emt 0:03:13]} e4 {[%emt 0:06:18]} 20. Bb2 {[%emt 0:00:44]} Bxb2 {[%emt 0:01:39]} 21. Rxb2 {[%emt 0:00:05]} Qe8 {[%emt 0:00:33]} 22. Re1 {[%emt 0:06:26]} Qe5 {[%emt 0:06:54]} 23. Qc1 {[%emt 0:00:05]} Qg5 {[%emt 0:10:17]} 24. Nf1 {[%emt 0:03:07]} Qxc1 {[%emt 0:02:43]} 25. Rxc1 {[%emt 0:00:57]} Rfb8 {[%emt 0:00:08]} 26. Nc3 {[%emt 0:07:47]} Nba4 {[%emt 0:03:20]} 27. Nxa4 {[%emt 0:00:06]} Bxa4 {[%emt 0:00:21]} 28. Nd2 {[%emt 0:00:30]} Bxb3 {[%emt 0:00:51]} 29. Rcb1 {[%emt 0:01:22]} a4 {[%emt 0:00:59]} 30. Nxb3 {[%emt 0:00:05]} axb3 {[%emt 0:02:16]} 31. Kf1 {[%emt 0:01:08]} Rb4 {[%emt 0:00:35]} 32. Ke1 {[%emt 0:00:21]} Ra2 {[%emt 0:02:26]} 33. Rd2 {[%emt 0:14:41]} b2 {[%emt 0:06:37]} 34. Kd1 {[%emt 0:02:00]} Ra1 {[%emt 0:00:37]} 35. Kc2 {[%emt 0:00:08]} Rxb1 {[%emt 0:05:47]} 36. Kxb1 {[%emt 0:00:05]} Na4 {[%emt 0:00:05]} 37. Rc2 {[%emt 0:01:13]} Rb3 {[%emt 0:00:28]} 38. c5 {[%emt 0:03:39]} Ra3 {[%emt 0:03:43]} 39. Rxb2 {[%emt 0:00:38]} Nxb2 {[%emt 0:00:02]} 40. Kxb2 {[%emt 0:01:54]} Ra5 {[%emt 0:00:11]} 41. c6 {[%emt 0:02:29]} Rxd5 {[%emt 0:01:18]} 42. f3 {[%emt 0:00:57]} Rc5 {[%emt 0:00:12]} 43. fxe4 {[%emt 0:00:05]} Rxc6 {[%emt 0:00:03]} 44. Kb3 {[%emt 0:00:43]} Rc5 {[%emt 0:00:06]} 45. Bc4 {[%emt 0:00:52]} Kg7 {[%emt 0:00:22]} 46. Kc3 {[%emt 0:00:03]} f5 {[%emt 0:00:10]} 47. exf5 {[%emt 0:00:10]} d5 {[%emt 0:00:06]} 48. Kd4 0-1

[Event "26th Abu Dhabi Master 2019"]
[Site "Abu Dhabi"]
[Date "2019.08.08"]
[Round "7.61"]
[White "Salih, Akar Ali Salih"]
[Black "Ajay Karthikeyan"]
[Result "1/2-1/2"]
[ECO "B90"]
[WhiteElo "2261"]
[BlackElo "2216"]
[Annotator "NA"]
[PlyCount "98"]
[EventDate "2019.08.02"]
[EventType "swiss"]
[EventCountry "UAE"]
[SourceTitle "playchess.com"]
[Source "ChessBase"]
[SourceQuality "1"]
[TimeControl "5400+30"]

1. e4 {[%emt 0:00:27]} c5 {[%emt 0:00:00]} 2. Nf3 {[%emt 0:00:08]} d6 {[%emt 0:00:00]} 3. d4 {[%emt 0:00:28]} cxd4 {[%emt 0:00:00]} 4. Nxd4 {[%emt 0:00:08]} Nf6 {[%emt 0:00:00]} 5. Nc3 {[%emt 0:00:06]} a6 {[%emt 0:00:00]} 6. Be3 {[%emt 0:02:11]} e5 {[%emt 0:00:00]} 7. Nb3 {[%emt 0:00:08]} Be7 {[%emt 0:00:00]} 8. f3 {[%emt 0:00:11]} Be6 {[%emt 0:00:00]} 9. Qd2 {[%emt 0:00:14]} h5 {[%emt 0:00:02]} 10. O-O-O {[%emt 0:02:46]} Nbd7 {[%emt 0:00:07]} 11. Kb1 {[%emt 0:04:47]} b5 {[%emt 0:00:02]} 12. Nd5 {[%emt 0:11:45]} Bxd5 {[%emt 0:00:50]} 13. exd5 {[%emt 0:00:03]} Nb6 {[%emt 0:00:01]} 14. Bxb6 {[%emt 0:04:04]} Qxb6 {[%emt 0:00:02]} 15. Na5 {[%emt 0:00:27]} Rc8 {[%emt 0:00:08]} 16. Nc6 {[%emt 0:01:27]} Nxd5 {[%emt 0:02:03]} 17. Nxe7 {[%emt 0:07:01]} Nxe7 {[%emt 0:00:02]} 18. Qxd6 {[%emt 0:00:31]} Qxd6 {[%emt 0:00:04]} 19. Rxd6 {[%emt 0:00:05]} Nc6 {[%emt 0:00:46]} 20. Rd2 {[%emt 0:05:05]} Ke7 {[%emt 0:02:57]} 21. Bd3 {[%emt 0:10:24]} g6 {[%emt 0:06:13]} 22. a4 {[%emt 0:08:34]} Rhd8 {[%emt 0:03:57]} 23. Rhd1 {[%emt 0:06:10]} Nd4 {[%emt 0:11:10]} 24. axb5 {[%emt 0:04:34]} axb5 {[%emt 0:00:15]} 25. c3 {[%emt 0:00:07]} Nb3 {[%emt 0:01:14]} 26. Re2 {[%emt 0:00:03]} Kf6 {[%emt 0:02:55]} 27. Bc2 {[%emt 0:01:22]} Rxd1+ {[%emt 0:02:01]} 28. Bxd1 {[%emt 0:00:01]} Na5 {[%emt 0:11:35]} 29. b4 {[%emt 0:04:24]} Nc4 {[%emt 0:06:45]} 30. Bb3 {[%emt 0:00:16]} h4 {[%emt 0:03:16]} 31. Bxc4 {[%emt 0:06:25]} Rxc4 {[%emt 0:00:49]} 32. Kc2 {[%emt 0:00:06]} Ke6 {[%emt 0:07:45]} 33. Kd3 {[%emt 0:01:13]} f5 {[%emt 0:05:04]} 34. Ra2 {[%emt 0:00:47]} e4+ {[%emt 0:00:10]} 35. fxe4 {[%emt 0:00:24]} fxe4+ {[%emt 0:07:18]} 36. Kd2 {[%emt 0:00:03]} Rc6 {[%emt 0:04:42]} 37. Ra5 {[%emt 0:01:42]} Rd6+ {[%emt 0:03:47]} 38. Ke3 {[%emt 0:01:58]} Rd3+ {[%emt 0:00:07]} 39. Kxe4 {[%emt 0:00:07]} Rxc3 {[%emt 0:00:01]} 40. Rxb5 {[%emt 0:00:12]} Rc4+ {[%emt 0:07:44]} 41. Kf3 {[%emt 0:01:34]} Kf6 {[%emt 0:00:28]} 42. Rb8 {[%emt 0:06:12]} Rc3+ {[%emt 0:01:26]} 43. Kg4 {[%emt 0:00:50]} Rc4+ {[%emt 0:02:30]} 44. Kh3 {[%emt 0:00:20]} Rd4 {[%emt 0:00:21]} 45. b5 {[%emt 0:00:36]} Rb4 {[%emt 0:00:16]} 46. g3 {[%emt 0:02:34]} hxg3 {[%emt 0:01:13]} 47. hxg3 {[%emt 0:00:23]} Kg5 {[%emt 0:00:15]} 48. b6 {[%emt 0:03:06]} Rb1 {[%emt 0:00:55]} 49. Kg2 {[%emt 0:00:21]} Kg4 {[%emt 0:00:15]} 1/2-1/2

[Event "26th Abu Dhabi Master 2019"]
[Site "Abu Dhabi"]
[Date "2019.08.08"]
[Round "7.62"]
[White "Tabada, Jobannie C."]
[Black "Siva Mahadevan"]
[Result "1/2-1/2"]
[ECO "B92"]
[WhiteElo "2216"]
[BlackElo "2270"]
[Annotator "NA"]
[PlyCount "153"]
[EventDate "2019.08.02"]
[EventType "swiss"]
[EventCountry "UAE"]
[SourceTitle "playchess.com"]
[Source "ChessBase"]
[SourceQuality "1"]
[TimeControl "5400+30"]

1. e4 {[%emt 0:00:00]} c5 {[%emt 0:07:07]} 2. Nf3 {[%emt 0:00:00]} d6 {[%emt 0:00:12]} 3. d4 {[%emt 0:00:00]} cxd4 {[%emt 0:00:04]} 4. Nxd4 {[%emt 0:00:07]} Nf6 {[%emt 0:00:05]} 5. Nc3 {[%emt 0:00:05]} a6 {[%emt 0:00:22]} 6. Be2 {[%emt 0:00:05]} e5 {[%emt 0:00:19]} 7. Nb3 {[%emt 0:01:22]} Be7 {[%emt 0:00:03]} 8. O-O {[%emt 0:00:28]} O-O {[%emt 0:00:07]} 9. Bg5 {[%emt 0:00:08]} Be6 {[%emt 0:01:45]} 10. Qd2 {[%emt 0:09:52]} Nbd7 {[%emt 0:00:33]} 11. Rfd1 {[%emt 0:03:47]} b5 {[%emt 0:14:21]} 12. Bf3 {[%emt 0:10:11]} b4 {[%emt 0:19:35]} 13. Ne2 {[%emt 0:00:38]} a5 {[%emt 0:01:23]} 14. Ng3 {[%emt 0:00:50]} Qc7 {[%emt 0:18:11]} 15. Nf1 {[%emt 0:06:41]} Rac8 {[%emt 0:06:43]} 16. Ne3 {[%emt 0:00:32]} Nxe4 {[%emt 0:02:44]} 17. Bxe4 {[%emt 0:04:16]} Bxg5 {[%emt 0:01:08]} 18. Qxd6 {[%emt 0:00:01]} a4 {[%emt 0:00:38]} 19. Qxc7 {[%emt 0:03:17]} Rxc7 {[%emt 0:01:00]} 20. Nd2 {[%emt 0:17:18]} Bxe3 {[%emt 0:07:39]} 21. fxe3 {[%emt 0:00:01]} f5 {[%emt 0:00:07]} 22. Bd3 {[%emt 0:01:33]} e4 {[%emt 0:01:01]} 23. Bb5 {[%emt 0:00:45]} Rxc2 {[%emt 0:05:31]} 24. Bxa4 {[%emt 0:12:12]} Rxb2 {[%emt 0:00:18]} 25. Bxd7 {[%emt 0:12:44]} Bxd7 {[%emt 0:00:17]} 26. Nb3 {[%emt 0:00:31]} Bb5 {[%emt 0:04:30]} 27. Rdb1 Rxb1+ {[%emt 0:00:12]} 28. Rxb1 {[%emt 0:02:36]} Bd3 {[%emt 0:03:31]} 29. Rb2 {[%emt 0:00:38]} Rc8 {[%emt 0:01:28]} 30. Nd4 {[%emt 0:00:45]} Rc4 {[%emt 0:03:32]} 31. Kf2 {[%emt 0:03:17]} g6 {[%emt 0:00:11]} 32. h3 {[%emt 0:04:08]} Kf7 {[%emt 0:00:16]} 33. Rb3 {[%emt 0:00:32]} Kf6 {[%emt 0:01:04]} 34. a3 {[%emt 0:00:22]} bxa3 {[%emt 0:00:14]} 35. Rxa3 {[%emt 0:00:01]} Rc1 {[%emt 0:00:01]} 36. h4 {[%emt 0:01:12]} h6 {[%emt 0:00:58]} 37. Rb3 {[%emt 0:00:08]} Ke5 {[%emt 0:00:24]} 38. g3 {[%emt 0:02:30]} g5 {[%emt 0:00:33]} 39. hxg5 {[%emt 0:00:02]} hxg5 {[%emt 0:00:02]} 40. Rb8 {[%emt 0:00:27]} Rf1+ {[%emt 0:01:14]} 41. Kg2 {[%emt 0:00:01]} f4 {[%emt 0:00:30]} 42. Re8+ {[%emt 0:01:43]} Kd5 {[%emt 0:00:22]} 43. Rd8+ {[%emt 0:00:43]} Kc4 {[%emt 0:00:30]} 44. Rc8+ {[%emt 0:01:26]} Kd5 {[%emt 0:00:01]} 45. Rd8+ {[%emt 0:00:05]} Kc4 {[%emt 0:00:02]} 46. Rc8+ {[%emt 0:00:12]} Kb4 {[%emt 0:01:08]} 47. gxf4 {[%emt 0:02:51]} gxf4 {[%emt 0:00:01]} 48. Nc6+ {[%emt 0:00:35]} Kb3 {[%emt 0:01:16]} 49. Nd4+ {[%emt 0:01:26]} Kb2 {[%emt 0:00:44]} 50. Rc2+ {[%emt 0:01:02]} Kb1 {[%emt 0:00:14]} 51. Rf2 {[%emt 0:00:05]} f3+ {[%emt 0:00:34]} 52. Nxf3 {[%emt 0:00:09]} exf3+ {[%emt 0:00:04]} 53. Kxf3 {[%emt 0:00:06]} Re1 {[%emt 0:00:42]} 54. Rd2 {[%emt 0:00:15]} Bc2 {[%emt 0:00:10]} 55. Kf2 {[%emt 0:01:03]} Rh1 {[%emt 0:00:08]} 56. Kf3 {[%emt 0:00:10]} Kb2 {[%emt 0:00:37]} 57. Rd8 {[%emt 0:01:09]} Kc3 {[%emt 0:00:13]} 58. Ke2 {[%emt 0:01:13]} Rh2+ {[%emt 0:01:12]} 59. Kf3 {[%emt 0:00:01]} Bd3 {[%emt 0:00:11]} 60. Re8 {[%emt 0:01:03]} Rh1 {[%emt 0:01:10]} 61. Kf4 {[%emt 0:00:11]} Rf1+ {[%emt 0:00:34]} 62. Kg5 {[%emt 0:00:11]} Rf3 {[%emt 0:00:36]} 63. Kg4 {[%emt 0:00:04]} Rf2 {[%emt 0:00:27]} 64. Kg5 {[%emt 0:00:04]} Rf5+ {[%emt 0:00:23]} 65. Kg4 {[%emt 0:00:02]} Rf1 {[%emt 0:00:45]} 66. Kg5 {[%emt 0:00:03]} Ra1 {[%emt 0:00:22]} 67. Kf4 {[%emt 0:00:23]} Kd2 {[%emt 0:00:35]} 68. Kg5 {[%emt 0:00:31]} Ra4 {[%emt 0:00:19]} 69. Re7 {[%emt 0:00:29]} Be4 {[%emt 0:00:33]} 70. Kf4 {[%emt 0:01:08]} Ba8+ {[%emt 0:00:37]} 71. e4 {[%emt 0:01:00]} Rd4 {[%emt 0:00:25]} 72. Kf5 {[%emt 0:00:19]} Ke3 {[%emt 0:00:33]} 73. e5 {[%emt 0:00:04]} Bd5 {[%emt 0:00:35]} 74. e6 {[%emt 0:00:30]} Re4 {[%emt 0:00:30]} 75. Re8 {[%emt 0:00:55]} Bxe6+ {[%emt 0:00:32]} 76. Rxe6 {[%emt 0:00:03]} Rxe6 {[%emt 0:00:01]} 77. Kxe6 {[%emt 0:00:02]} 1/2-1/2

[Event "26th Abu Dhabi Master 2019"]
[Site "Abu Dhabi"]
[Date "2019.08.08"]
[Round "7.63"]
[White "Priyanka Nutakki"]
[Black "Krzywda, Andrzej"]
[Result "1/2-1/2"]
[ECO "A18"]
[WhiteElo "2293"]
[BlackElo "2190"]
[Annotator "NA"]
[PlyCount "90"]
[EventDate "2019.08.02"]
[EventType "swiss"]
[EventCountry "UAE"]
[SourceTitle "playchess.com"]
[Source "ChessBase"]
[SourceQuality "1"]
[TimeControl "5400+30"]

1. c4 {[%emt 0:01:03]} Nf6 {[%emt 0:00:00]} 2. Nc3 {[%emt 0:02:20]} e6 {[%emt 0:00:00]} 3. e4 {[%emt 0:00:06]} d5 {[%emt 0:00:08]} 4. e5 {[%emt 0:00:05]} d4 {[%emt 0:00:18]} 5. exf6 {[%emt 0:00:06]} dxc3 {[%emt 0:00:04]} 6. bxc3 {[%emt 0:00:04]} Qxf6 {[%emt 0:00:07]} 7. Nf3 {[%emt 0:00:03]} b6 {[%emt 0:00:37]} 8. g3 {[%emt 0:00:11]} Bb7 {[%emt 0:00:07]} 9. Bg2 {[%emt 0:00:03]} Nd7 {[%emt 0:02:29]} 10. O-O {[%emt 0:00:16]} Bd6 {[%emt 0:01:24]} 11. d4 {[%emt 0:00:30]} h6 {[%emt 0:01:59]} 12. a4 {[%emt 0:01:58]} O-O {[%emt 0:01:00]} 13. a5 {[%emt 0:04:15]} Rad8 {[%emt 0:05:20]} 14. axb6 {[%emt 0:04:42]} axb6 {[%emt 0:00:07]} 15. Ra7 {[%emt 0:00:00]} Be4 {[%emt 0:04:52]} 16. Qe2 {[%emt 0:06:45]} Bh7 {[%emt 0:05:55]} 17. Be3 {[%emt 0:04:34]} Rfe8 {[%emt 0:07:07]} 18. Qa2 {[%emt 0:13:23]} Be4 {[%emt 0:04:56]} 19. Nd2 {[%emt 0:01:55]} Bxg2 {[%emt 0:01:24]} 20. Kxg2 {[%emt 0:00:02]} Qf5 {[%emt 0:03:15]} 21. Qb1 {[%emt 0:04:19]} Nf6 {[%emt 0:00:22]} 22. h3 {[%emt 0:02:41]} Qxb1 {[%emt 0:11:32]} 23. Rxb1 {[%emt 0:00:12]} e5 {[%emt 0:00:21]} 24. Nb3 {[%emt 0:03:36]} exd4 {[%emt 0:09:31]} 25. cxd4 {[%emt 0:00:38]} Ne4 {[%emt 0:01:16]} 26. Kf3 {[%emt 0:07:07]} f5 {[%emt 0:08:43]} 27. d5 {[%emt 0:06:08]} Be5 {[%emt 0:05:22]} 28. Rc1 {[%emt 0:02:22]} Ra8 {[%emt 0:05:04]} 29. Rxa8 {[%emt 0:01:14]} Rxa8 {[%emt 0:00:02]} 30. c5 {[%emt 0:12:23]} Ra3 {[%emt 0:09:31]} 31. cxb6 {[%emt 0:00:43]} cxb6 {[%emt 0:00:06]} 32. Rc8+ {[%emt 0:00:06]} Kf7 {[%emt 0:00:12]} 33. Nc1 {[%emt 0:00:09]} b5 {[%emt 0:00:46]} 34. Rc6 {[%emt 0:04:28]} b4 {[%emt 0:04:45]} 35. Rb6 {[%emt 0:00:23]} Bd6 {[%emt 0:02:41]} 36. Rb7+ {[%emt 0:01:45]} Kf6 {[%emt 0:01:45]} 37. Kg2 {[%emt 0:00:37]} Ke5 {[%emt 0:03:03]} 38. Bf4+ {[%emt 0:09:18]} Kxd5 {[%emt 0:00:01]} 39. Bxd6 {[%emt 0:00:06]} Kxd6 {[%emt 0:00:10]} 40. Rxb4 {[%emt 0:00:02]} Rc3 {[%emt 0:00:49]} 41. Ne2 {[%emt 0:00:42]} Rc2 {[%emt 0:00:26]} 42. Kf1 {[%emt 0:00:49]} Nd2+ {[%emt 0:01:44]} 43. Kg2 {[%emt 0:00:01]} Ne4 {[%emt 0:00:09]} 44. Kf1 {[%emt 0:00:05]} Nd2+ {[%emt 0:01:14]} 45. Kg2 {[%emt 0:00:02]} Ne4 {[%emt 0:00:07]} 1/2-1/2

[Event "26th Abu Dhabi Master 2019"]
[Site "Abu Dhabi"]
[Date "2019.08.08"]
[Round "7.64"]
[White "Sharma Isha"]
[Black "Wagh Suyog"]
[Result "0-1"]
[ECO "C54"]
[WhiteElo "2188"]
[BlackElo "2242"]
[Annotator "NA"]
[PlyCount "154"]
[EventDate "2019.08.02"]
[EventType "swiss"]
[EventCountry "UAE"]
[SourceTitle "playchess.com"]
[Source "ChessBase"]
[SourceQuality "1"]
[TimeControl "5400+30"]

1. e4 e5 2. Nf3 Nc6 3. Bc4 Bc5 4. c3 Nf6 5. d3 d6 6. Nbd2 O-O 7. h3 a6 8. Bb3 Be6 9. Bc2 Re8 10. Nf1 d5 11. Be3 d4 12. Bd2 b5 13. Ng3 h6 14. O-O Bf8 15. a4 Nd7 16. Ne1 Nc5 17. a5 Qd7 18. f4 exf4 19. Bxf4 g6 20. Nf3 Bg7 21. Ne2 g5 22. Bg3 Rad8 23. Nexd4 Nxd4 24. cxd4 Bxd4+ 25. Nxd4 Qxd4+ 26. Bf2 Qb4 27. d4 Bb3 28. e5 Bxc2 29. Qxc2 Nb3 30. Rad1 Qc4 31. Qc3 Qxc3 32. bxc3 Re6 33. Bg3 Rd5 34. Rf2 Nxa5 35. Rdf1 Rd7 36. d5 Rxd5 37. Rxf7 Rd1 38. Rxc7 Rxf1+ 39. Kxf1 Rc6 40. Ra7 Nb3 41. Ke2 a5 42. Kd3 a4 43. Ke4 Rxc3 44. Be1 Rc1 45. Bf2 Rf1 46. Be3 Rf7 47. Ra6 Rb7 48. Kf5 Kg7 49. h4 gxh4 50. Bxh6+ Kh7 51. Be3 Rf7+ 52. Kg5 Rg7+ 53. Kxh4 Re7 54. e6 Kg6 55. Kg4 Re8 56. g3 Na1 57. e7+ Kf7 58. Bg5 Nb3 59. Kf5 Nd4+ 60. Ke4 Ne6 61. Kf5 Nxg5 62. Kxg5 Rxe7 63. Rb6 Re5+ 64. Kf4 Rc5 65. Ra6 Rc3 66. Ra5 Rb3 67. g4 a3 68. g5 Rb4+ 69. Kf5 Ra4 70. Rxb5 a2 71. g6+ Ke7 72. Rb7+ Kd6 73. g7 a1=Q 74. Rb6+ Kc7 75. g8=Q Qf1+ 76. Ke5 Qf4+ 77. Kd5 Qf5# {Kd4} 0-1